lending/lending_fUSD_20240110
["ID","MTS","AMOUNT","RATE_DAILY","PERIOD"]
[311027092,1704873081397,-555.69,0.00030958,2]
[311027093,1704873081409,-500.0,0.00030958,2]
[311027094,1704873081419,-960.17,0.00030958,2]
[311027095,1704873081430,-334.21472543,0.00030958,2]
[311027096,1704873081440,-500.0,0.00030958,2]
[311027097,1704873081450,-500.0,0.00030958,2]
[311027098,1704873081460,-662.62,0.00030958,2]
[311027099,1704873081471,-945.78,0.00030958,2]
[311027100,1704873081481,-957.52,0.00030958,2]
[311027101,1704873081491,-584.88,0.00030958,2]
[311027102,1704873081501,-506.0121699,0.00030958,2]
[311027103,1704873081512,-500.0,0.00030958,2]
[311027104,1704873081523,-700.12,0.00030958,2]
[311027105,1704873081532,-671.75,0.00030958,2]
[311027106,1704873081543,-500.0,0.00030958,2]
[311027107,1704873081553,-500.0,0.00030958,2]
[311027108,1704873081564,-500.0,0.00030958,2]
[311027109,1704873081574,-500.0,0.00030958,2]
[311027110,1704873081584,-388.21781324,0.00030958,2]
[311027111,1704873081594,-576.06,0.00030958,2]
[311027112,1704873081605,-500.0,0.00030958,2]
[311027113,1704873081615,-549.46,0.00030958,2]
[311027114,1704873081630,-500.0,0.00030958,2]
[311027115,1704873081640,-627.6,0.00030958,2]
[311027116,1704873081650,-500.0,0.00030958,2]
[311027117,1704873081659,-500.0,0.00030958,2]
[311027118,1704873081670,-500.0,0.00030958,2]
[311027119,1704873081680,-500.0,0.00030958,2]
[311027120,1704873081691,-500.0,0.00030958,2]
[311027121,1704873081701,-729.53,0.00030958,2]
[311027122,1704873081711,-695.07,0.00030958,2]
[311027123,1704873081721,-500.0,0.00030958,2]
[311027124,1704873081731,-758.31,0.00030958,2]
[311027125,1704873081741,-500.0,0.00030958,2]
[311027126,1704873081751,-500.0,0.00030958,2]
[311027127,1704873081762,-500.0,0.00030958,2]
[311027128,1704873081771,-500.0,0.00030958,2]
[311027129,1704873081781,-500.0,0.00030958,2]
[311027130,1704873081791,-610.84,0.00030958,2]
[311027131,1704873081801,-560.19,0.00030958,2]
[311027132,1704873081820,-500.0,0.00030958,2]
[311027133,1704873081830,-500.0,0.00030958,2]
[311027134,1704873081840,-889.76,0.00030958,2]
[311027135,1704873081850,-500.0,0.00030958,2]
[311027136,1704873081860,-500.0,0.00030958,2]
[311027137,1704873081870,-500.0,0.00030958,2]
[311027138,1704873081879,-500.0,0.00030958,2]
[311027139,1704873081889,-500.0,0.00030958,2]
[311027140,1704873081898,-500.0,0.00030958,2]
[311027141,1704873081908,-500.0,0.00030958,2]
[311027142,1704873081918,-910.4,0.00030958,2]
[311027143,1704873081927,-500.0,0.00030958,2]
[311027144,1704873081937,-500.0,0.00030958,2]
[311027145,1704873081946,-722.78,0.00030958,2]
[311027146,1704873081956,-500.0,0.00030958,2]
[311027147,1704873081965,-500.0,0.00030958,2]
[311027148,1704873081975,-500.0,0.00030958,2]
[311027149,1704873081985,-500.0,0.00030958,2]
[311027150,1704873081995,-500.0,0.00030958,2]
[311027151,1704873082005,-774.75,0.00030958,2]
[311027152,1704873082015,-536.8,0.00030958,2]
[311027153,1704873082025,-555.46,0.00030958,2]
[311027154,1704873082034,-500.0,0.00030958,2]
[311027155,1704873082044,-554.75,0.00030958,2]
[311027156,1704873082054,-500.0,0.00030958,2]
[311027157,1704873082065,-650.19,0.00030958,2]
[311027158,1704873082075,-500.0,0.00030958,2]
[311027159,1704873082085,-1135.23,0.00030958,2]
[311027160,1704873082094,-685.39,0.00030958,2]
[311027161,1704873082104,-500.0,0.00030958,2]
[311027162,1704873082113,-500.0,0.00030958,2]
[311027163,1704873082125,-500.0,0.00030958,2]
[311027164,1704873082135,-682.77,0.00030958,2]
[311027165,1704873082144,-500.0,0.00030958,2]
[311027166,1704873082154,-500.0,0.00030958,2]
[311027167,1704873082163,-500.0,0.00030958,2]
[311027168,1704873082173,-500.0,0.00030958,2]
[311027169,1704873082182,-672.14,0.00030958,2]
[311027170,1704873082191,-500.0,0.00030958,2]
[311027171,1704873082201,-500.0,0.00030958,2]
[311027172,1704873082210,-783.91,0.00030958,2]
[311027173,1704873082220,-748.93,0.00030958,2]
[311027174,1704873082230,-500.47,0.00030958,2]
[311027175,1704873082239,-500.0,0.00030958,2]
[311027176,1704873082249,-500.0,0.00030958,2]
[311027177,1704873082258,-609.19,0.00030958,2]
[311027178,1704873082268,-500.0,0.00030958,2]
[311027179,1704873082278,-500.0,0.00030958,2]
[311027180,1704873082288,-656.48,0.00030958,2]
[311027181,1704873082298,-500.0,0.00030958,2]
[311027182,1704873082308,-500.0,0.00030958,2]
[311027183,1704873082317,-500.0,0.00030958,2]
[311027184,1704873082327,-500.0,0.00030958,2]
[311027185,1704873082337,-500.0,0.00030958,2]
[311027186,1704873082346,-500.0,0.00030958,2]
[311027187,1704873082356,-1004.91,0.00030958,2]
[311027188,1704873082365,-500.0,0.00030958,2]
[311027189,1704873082375,-500.0,0.00030958,2]
[311027190,1704873082385,-1088.9,0.00030958,2]
[311027191,1704873082394,-500.0,0.00030958,2]
[311027192,1704873082404,-500.0,0.00030958,2]
[311027193,1704873082413,-500.0,0.00030958,2]
[311027194,1704873082423,-731.88,0.00030958,2]
[311027195,1704873082433,-500.0,0.00030958,2]
[311027196,1704873082443,-694.19,0.00030958,2]
[311027197,1704873082452,-500.0,0.00030958,2]
[311027198,1704873082462,-1027.13,0.00030958,2]
[311027199,1704873082472,-500.0,0.00030958,2]
[311027200,1704873082481,-500.0,0.00030958,2]
[311027201,1704873082491,-500.0,0.00030958,2]
[311027202,1704873082500,-500.0,0.00030958,2]
[311027203,1704873082510,-550.3,0.00030958,2]
[311027204,1704873082519,-930.41,0.00030958,2]
[311027205,1704873082529,-500.0,0.00030958,2]
[311027206,1704873082538,-503.5270726,0.00030958,2]
[311027207,1704873082548,-500.0,0.00030958,2]
[311027208,1704873082558,-500.0,0.00030958,2]
[311027209,1704873082568,-500.0,0.00030958,2]
[311027210,1704873082577,-500.0,0.00030958,2]
[311027211,1704873082587,-557.13,0.00030958,2]
[311027212,1704873082597,-500.0,0.00030958,2]
[311027213,1704873082606,-500.0,0.00030958,2]
[311027214,1704873082616,-645.67,0.00030958,2]
[311027215,1704873082627,-500.0,0.00030958,2]
[311027216,1704873082637,-699.15,0.00030958,2]
[311027217,1704873082646,-500.0,0.00030958,2]
[311027218,1704873082656,-875.6,0.00030958,2]
[311027219,1704873082666,-500.0,0.00030958,2]
[311027220,1704873082677,-938.52,0.00030958,2]
[311027221,1704873082687,-703.92,0.00030958,10]
[311027222,1704873082697,-500.0,0.00030958,2]
[311027223,1704873082706,-500.0,0.00030958,2]
[311027224,1704873082717,-500.0,0.00030958,2]
[311027225,1704873082726,-500.0,0.00030958,2]
[311027226,1704873082736,-500.0,0.00030958,2]
[311027227,1704873082746,-427.31091002,0.00030958,2]
[311027228,1704873082756,-500.0,0.00030958,2]
[311027229,1704873082765,-500.0,0.00030958,2]
[311027230,1704873082774,-500.0,0.00030958,2]
[311027231,1704873082784,-500.0,0.00030958,2]
[311027232,1704873082794,-500.0,0.00030958,2]
[311027233,1704873082803,-739.13,0.00030958,2]
[311027234,1704873082813,-500.0,0.00030958,2]
[311027235,1704873082823,-500.0,0.00030958,2]
[311027236,1704873082833,-500.0,0.00030958,2]
[311027237,1704873082843,-900.21,0.00030958,2]
[311027238,1704873082854,-1252.37,0.00030958,2]
[311027239,1704873082864,-1031.57,0.00030958,2]
[311027240,1704873082874,-644.75,0.00030958,2]
[311027241,1704873082883,-500.0,0.00030958,2]
[311027242,1704873082893,-944.68,0.00030958,2]
[311027243,1704873082903,-500.0,0.00030958,2]
[311027244,1704873082913,-566.35,0.00030958,2]
[311027245,1704873082923,-1023.32,0.00030958,4]
[311027246,1704873082932,-500.0,0.00030958,2]
[311027247,1704873082942,-500.0,0.00030958,2]
[311027248,1704873082952,-500.0,0.00030958,2]
[311027249,1704873082961,-695.65,0.00030958,2]
[311027250,1704873082971,-500.0,0.00030958,2]
[311027251,1704873082981,-500.0,0.00030958,2]
[311027252,1704873082991,-500.0,0.00030958,2]
[311027253,1704873083001,-500.0,0.00030958,2]
[311027254,1704873083011,-895.37,0.00030958,2]
[311027255,1704873083020,-794.51,0.00030958,2]
[311027256,1704873083030,-500.0,0.00030958,2]
[311027257,1704873083040,-500.0,0.00030958,2]
[311027258,1704873083050,-555.48,0.00030958,2]
[311027259,1704873083060,-979.38,0.00030958,2]
[311027260,1704873083069,-500.0,0.00030958,2]
[311027261,1704873083079,-746.37,0.00030958,2]
[311027262,1704873083089,-1034.89,0.00030958,2]
[311027263,1704873083099,-500.0,0.00030958,2]
[311027264,1704873083109,-806.42,0.00030958,2]
[311027265,1704873083121,-687.36,0.00030958,2]
[311027266,1704873083131,-1000.0,0.00030958,2]
[311027267,1704873083140,-500.0,0.00030958,2]
[311027268,1704873083151,-500.0,0.00030958,2]
[311027269,1704873083161,-781.57,0.00030958,2]
[311027270,1704873083171,-758.09,0.00030958,2]
[311027271,1704873083181,-500.0,0.00030958,2]
[311027272,1704873083191,-566.15,0.00030958,2]
[311027273,1704873083200,-500.0,0.00030958,2]
[311027274,1704873083210,-674.7,0.00030958,2]
[311027275,1704873083220,-653.09,0.00030958,2]
[311027276,1704873083229,-641.05,0.00030958,2]
[311027277,1704873083239,-1144.59,0.00030958,2]
[311027278,1704873083249,-500.0,0.00030958,2]
[311027279,1704873083259,-618.68,0.00030958,2]
[311027280,1704873083269,-941.67,0.00030958,2]
[311027281,1704873083280,-681.29,0.00030958,2]
[311027282,1704873083290,-1000.0,0.00030958,2]
[311027283,1704873083300,-500.0,0.00030958,2]
[311027284,1704873083310,-1523.66,0.00030958,2]
[311027285,1704873083320,-500.0,0.00030958,2]
[311027286,1704873083330,-359.9752211,0.00030958,2]
[311027287,1704873083342,-500.0,0.00030958,2]
[311027288,1704873083353,-500.0,0.00030958,2]
[311027289,1704873083364,-500.0,0.00030958,2]
[311027290,1704873083383,-335.03629101,0.00030958,2]
[311027291,1704873083401,-500.0,0.00030958,2]
[311027292,1704873083410,-500.0,0.00030958,2]
[311027293,1704873083420,-500.0,0.00030958,2]
[311027294,1704873083430,-1684.92,0.00030958,2]
[311027295,1704873083440,-617.56,0.00030958,2]
[311027296,1704873083450,-500.0,0.00030958,2]
[311027297,1704873083460,-1487.26,0.00030958,2]
[311027298,1704873083470,-664.35,0.00030958,2]
[311027299,1704873083481,-500.0,0.00030958,2]
[311027300,1704873083491,-500.0,0.00030958,2]
[311027301,1704873083501,-500.0,0.00030958,2]
[311027302,1704873083511,-790.36,0.00030958,2]
[311027303,1704873083822,-500.0,0.00030958,2]
[311027304,1704873083833,-3111.8,0.00030958,2]
[311027305,1704873083843,-500.0,0.00030958,2]
[311027306,1704873083852,-215.44541545,0.00030958,2]
[311027307,1704873083861,-523.02,0.00030958,2]
[311027308,1704873083872,-500.0,0.00030958,2]
[311027309,1704873083881,-287.07853379,0.00030958,2]
[311027310,1704873083891,-500.0,0.00030958,2]
[311027311,1704873083900,-500.0,0.00030958,2]
[311027312,1704873083909,-500.0,0.00030958,2]
[311027313,1704873083918,-1197.89,0.00030958,2]
[311027314,1704873083928,-565.37,0.00030958,2]
[311027315,1704873083937,-398.39935103,0.00030958,2]
[311027316,1704873083947,-1242.31,0.00030958,2]
[311027317,1704873083957,-500.0,0.00030958,2]
[311027318,1704873083966,-1024.31,0.00030958,2]
[311027319,1704873083975,-535.71,0.00030958,2]
[311027320,1704873083985,-1696.11,0.00030958,2]
[311027321,1704873083994,-1358.46,0.00030958,2]
[311027322,1704873084004,-500.0,0.00030958,2]
[311027323,1704873084015,-1165.8,0.00030958,2]
[311027324,1704873084024,-1127.04,0.00030958,2]
[311027325,1704873084034,-1121.62,0.00030958,2]
[311027326,1704873084043,-500.0,0.00030958,2]
[311027327,1704873084053,-500.0,0.00030958,2]
[311027328,1704873084062,-500.0,0.00030958,2]
[311027329,1704873084071,-1563.61,0.00030958,2]
[311027330,1704873084081,-500.0,0.00030958,2]
[311027331,1704873084091,-629.23,0.00030958,2]
[311027332,1704873084100,-1057.05,0.00030958,2]
[311027333,1704873084110,-500.0,0.00030958,2]
[311027334,1704873084120,-1707.59,0.00030958,2]
[311027335,1704873084135,-1314.54,0.00030958,2]
[311027336,1704873084145,-616.09,0.00030958,2]
[311027337,1704873084155,-798.58,0.00030958,2]
[311027338,1704873084165,-654.04,0.00030958,2]
[311027339,1704873084175,-500.0,0.00030958,2]
[311027340,1704873084185,-500.0,0.00030958,2]
[311027341,1704873084195,-500.0,0.00030958,2]
[311027342,1704873084205,-791.78,0.00030958,2]
[311027343,1704873084214,-1519.78,0.00030958,2]
[311027344,1704873084225,-1032.6,0.00030958,2]
[311027345,1704873084234,-944.59,0.00030958,2]
[311027346,1704873084243,-500.0,0.00030958,2]
[311027347,1704873084253,-521.81371478,0.00030958,2]
[311027348,1704873084263,-1070.99,0.00030958,2]
[311027349,1704873084273,-500.0,0.00030958,2]
[311027350,1704873084283,-500.0,0.00030958,2]
[311027351,1704873084292,-834.05,0.00030958,2]
[311027352,1704873084302,-542.28,0.00030958,2]
[311027353,1704873084311,-500.0,0.00030958,2]
[311027354,1704873084321,-1242.0,0.00030958,2]
[311027355,1704873084331,-542.76,0.00030958,2]
[311027356,1704873084341,-1254.84,0.00030958,2]
[311027357,1704873084350,-1541.66,0.00030958,2]
[311027358,1704873084360,-1323.81,0.00030958,2]
[311027359,1704873084369,-500.0,0.00030958,2]
[311027360,1704873084379,-1114.88,0.00030958,2]
[311027361,1704873084389,-1076.73,0.00030958,2]
[311027362,1704873084399,-880.32,0.00030958,2]
[311027363,1704873084409,-886.36,0.00030958,2]
[311027364,1704873084419,-500.0,0.00030958,2]
[311027365,1704873084429,-539.61,0.00030958,2]
[311027366,1704873084439,-951.35,0.00030958,2]
[311027367,1704873084448,-1305.55,0.00030958,2]
[311027368,1704873084457,-314.61327928,0.00030958,2]
[311027369,1704873084467,-500.0,0.00030958,2]
[311027370,1704873084477,-500.0,0.00030958,2]
[311027371,1704873084486,-2061.61,0.00030958,2]
[311027372,1704873084496,-661.44,0.00030958,2]
[311027373,1704873084505,-500.0,0.00030958,2]
[311027374,1704873084515,-1094.74,0.00030958,2]
[311027375,1704873084524,-500.0,0.00030958,2]
[311027376,1704873084534,-1473.64,0.00030958,2]
[311027377,1704873084543,-1657.99,0.00030958,2]
[311027378,1704873084553,-905.83,0.00030958,2]
[311027379,1704873084563,-500.0,0.00030958,2]
[311027380,1704873084572,-1210.18,0.00030958,2]
[311027381,1704873084582,-557.46,0.00030958,2]
[311027382,1704873084591,-500.0,0.00030958,2]
[311027383,1704873084601,-1402.24,0.00030958,2]
[311027384,1704873084610,-1285.08,0.00030958,2]
[311027385,1704873084620,-684.33,0.00030958,2]
[311027386,1704873084630,-743.21,0.00030958,2]
[311027387,1704873084639,-645.01,0.00030958,2]
[311027388,1704873084649,-500.0,0.00030958,2]
[311027389,1704873084658,-500.0,0.00030958,2]
[311027390,1704873084668,-627.64,0.00030958,2]
[311027391,1704873084678,-651.24,0.00030958,2]
[311027392,1704873084687,-665.21,0.00030958,2]
[311027393,1704873084696,-500.0,0.00030958,2]
[311027394,1704873084706,-792.43,0.00030958,2]
[311027395,1704873084715,-500.0,0.00030958,2]
[311027396,1704873084725,-1236.53,0.00030958,2]
[311027397,1704873084734,-703.78,0.00030958,2]
[311027398,1704873084744,-500.0,0.00030958,2]
[311027399,1704873084753,-500.0,0.00030958,2]
[311027400,1704873084763,-1669.06,0.00030958,2]
[311027401,1704873084772,-500.0,0.00030958,2]
[311027402,1704873084782,-2220.47,0.00030958,2]
[311027403,1704873084791,-608.94,0.00030958,2]
[311027404,1704873084801,-642.72,0.00030958,2]
[311027405,1704873084810,-500.0,0.00030958,2]
[311027406,1704873084819,-500.0,0.00030958,2]
[311027407,1704873084829,-800.0,0.00030958,2]
[311027408,1704873084839,-496.86411082,0.00030958,2]
[311027409,1704873084848,-945.82,0.00030958,2]
[311027410,1704873084858,-658.74,0.00030958,2]
[311027411,1704873084867,-500.0,0.00030958,2]
[311027412,1704873084878,-666.71,0.00030958,2]
[311027413,1704873084888,-500.0,0.00030958,2]
[311027414,1704873084897,-1104.64,0.00030958,2]
[311027415,1704873084906,-500.0,0.00030958,2]
[311027416,1704873084916,-500.0,0.00030958,2]
[311027417,1704873084925,-1401.68,0.00030958,2]
[311027418,1704873084935,-1424.61,0.00030958,2]
[311027419,1704873084945,-1037.5,0.00030958,2]
[311027420,1704873084955,-500.0,0.00030958,2]
[311027421,1704873084964,-500.0,0.00030958,2]
[311027422,1704873084974,-500.0,0.00030958,2]
[311027423,1704873084984,-500.0,0.00030958,2]
[311027424,1704873084993,-500.0,0.00030958,2]
[311027425,1704873085003,-500.0,0.00030958,2]
[311027426,1704873085013,-500.0,0.00030958,2]
[311027427,1704873085022,-500.0,0.00030958,2]
[311027428,1704873085032,-1293.7,0.00030958,2]
[311027429,1704873085042,-774.19,0.00030958,2]
[311027430,1704873085051,-775.07,0.00030958,2]
[311027431,1704873085061,-500.0,0.00030958,2]
[311027432,1704873085070,-500.0,0.00030958,2]
[311027433,1704873085080,-960.98,0.00030958,2]
[311027434,1704873085090,-500.0,0.00030958,2]
[311027435,1704873085099,-500.0,0.00030958,2]
[311027436,1704873085109,-1334.99,0.00030958,2]
[311027437,1704873085118,-500.0,0.00030958,2]
[311027438,1704873085129,-875.29,0.00030958,2]
[311027439,1704873085139,-500.0,0.00030958,2]
[311027440,1704873085148,-723.68,0.00030958,2]
[311027441,1704873085158,-1098.09,0.00030958,2]
[311027442,1704873085168,-257.88534512,0.00030958,2]
[311027443,1704873085178,-786.08,0.00030958,2]
[311027444,1704873085188,-1517.62,0.00030958,2]
[311027445,1704873085197,-572.06,0.00030958,2]
[311027446,1704873085207,-571.35,0.00030958,2]
[311027447,1704873085216,-500.0,0.00030958,2]
[311027448,1704873085225,-500.0,0.00030958,2]
[311027449,1704873085235,-500.0,0.00030958,2]
[311027450,1704873085245,-500.0,0.00030958,2]
[311027451,1704873085255,-500.0,0.00030958,2]
[311027452,1704873085264,-500.0,0.00030958,2]
[311027453,1704873085274,-866.33,0.00030958,2]
[311027454,1704873085284,-1000.0,0.00030958,7]
[311027455,1704873085293,-1313.47,0.00030958,2]
[311027456,1704873085302,-836.6,0.00030958,2]
[311027457,1704873085312,-500.0,0.00030958,2]
[311027458,1704873085321,-1152.55,0.00030958,2]
[311027459,1704873085331,-500.0,0.00030958,2]
[311027460,1704873085340,-500.0,0.00030958,2]
[311027461,1704873085349,-1556.25,0.00030958,2]
[311027462,1704873085359,-1256.03,0.00030958,2]
[311027463,1704873085368,-1140.72,0.00030958,2]
[311027464,1704873085380,-500.0,0.00030958,2]
[311027465,1704873085390,-500.0,0.00030958,2]
[311027466,1704873085399,-1324.64,0.00030958,2]
[311027467,1704873085408,-500.0,0.00030958,2]
[311027468,1704873085419,-1218.71,0.00030958,2]
[311027469,1704873085428,-853.1,0.00030958,2]
[311027470,1704873085438,-1269.98,0.00030958,2]
[311027471,1704873085448,-728.65,0.00030958,2]
[311027472,1704873085458,-1298.05,0.00030958,2]
[311027473,1704873085467,-1713.75,0.00030958,2]
[311027474,1704873085476,-500.0,0.00030958,2]
[311027475,1704873085485,-500.0,0.00030958,2]
[311027476,1704873085495,-500.0,0.00030958,2]
[311027477,1704873085504,-831.24,0.00030958,2]
[311027478,1704873085513,-569.63,0.00030958,2]
[311027479,1704873085524,-500.0,0.00030958,2]
[311027480,1704873085533,-500.0,0.00030958,2]
[311027481,1704873085542,-2031.17,0.00030958,2]
[311027482,1704873085552,-1601.7,0.00030958,2]
[311027483,1704873085562,-524.24,0.00030958,2]
[311027484,1704873085571,-500.0,0.00030958,2]
[311027485,1704873085580,-1017.74,0.00030958,2]
[311027486,1704873085590,-500.0,0.00030958,2]
[311027487,1704873085600,-500.0,0.00030958,2]
[311027488,1704873085609,-500.0,0.00030958,2]
[311027489,1704873085618,-791.41,0.00030958,2]
[311027490,1704873085629,-1118.71,0.00030958,2]
[311027491,1704873085639,-500.0,0.00030958,2]
[311027492,1704873085649,-626.68,0.00030958,2]
[311027493,1704873085659,-1049.71,0.00030958,2]
[311027494,1704873085668,-500.0,0.00030958,2]
[311027495,1704873085678,-500.0,0.00030958,2]
[311027496,1704873085687,-555.99550893,0.00030958,2]
[311027497,1704873085697,-500.0,0.00030958,2]
[311027498,1704873085707,-500.0,0.00030958,2]
[311027499,1704873085716,-733.68,0.00030958,2]
[311027500,1704873085725,-500.0,0.00030958,2]
[311027501,1704873085735,-500.0,0.00030958,2]
[311027502,1704873085745,-500.0,0.00030958,7]
[311027503,1704873085755,-500.0,0.00030958,2]
[311027504,1704873085764,-500.0,0.00030958,2]
[311027505,1704873085774,-561.28,0.00030958,2]
[311027506,1704873085783,-500.0,0.00030958,2]
[311027507,1704873085795,-902.13,0.00030958,2]
[311027508,1704873085804,-500.0,0.00030958,2]
[311027509,1704873085814,-1053.88,0.00030958,2]
[311027510,1704873085824,-1088.38,0.00030958,2]
[311027511,1704873085834,-835.24,0.00030958,2]
[311027512,1704873085845,-721.46,0.00030958,2]
[311027513,1704873085854,-500.0,0.00030958,2]
[311027514,1704873085863,-500.0,0.00030958,2]
[311027515,1704873085875,-355.79769046,0.00030958,2]
[311027516,1704873085885,-500.0,0.00030958,2]
[311027517,1704873085895,-500.0,0.00030958,2]
[311027518,1704873085905,-919.69,0.00030958,2]
[311027519,1704873085914,-1391.47,0.00030958,2]
[311027520,1704873085924,-649.26,0.00030958,2]
[311027521,1704873085935,-500.0,0.00030958,2]
[311027522,1704873085946,-700.3,0.00030958,2]
[311027523,1704873085955,-500.0,0.00030958,2]
[311027524,1704873085966,-2227.04,0.00030958,2]
[311027525,1704873085976,-596.15,0.00030958,2]
[311027526,1704873085987,-1069.65,0.00030958,2]
[311027527,1704873085998,-1400.2,0.00030958,2]
[311027528,1704873086008,-500.0,0.00030958,2]
[311027529,1704873086018,-641.27,0.00030958,2]
[311027530,1704873086028,-1327.8,0.00030958,2]
[311027531,1704873086039,-513.46,0.00030958,2]
[311027532,1704873086049,-500.0,0.00030958,2]
[311027533,1704873086059,-500.0,0.00030958,2]
[311027534,1704873086070,-695.32,0.00030958,2]
[311027535,1704873086080,-1487.28,0.00030958,2]
[311027536,1704873086091,-930.79,0.00030958,2]
[311027537,1704873086201,-1507.14,0.00030958,2]
[311027538,1704873086211,-500.0,0.00030958,2]
[311027539,1704873086220,-628.25,0.00030958,2]
[311027540,1704873086229,-500.0,0.00030958,2]
[311027541,1704873086238,-1292.48,0.00030958,2]
[311027542,1704873086248,-1760.51,0.00030958,2]
[311027543,1704873086257,-500.0,0.00030958,2]
[311027544,1704873086267,-500.0,0.00030958,2]
[311027545,1704873086276,-507.7698524,0.00030958,2]
[311027546,1704873086286,-500.0,0.00030958,2]
[311027547,1704873086296,-500.0,0.00030958,2]
[311027548,1704873086305,-1101.16,0.00030958,2]
[311027549,1704873086315,-500.0,0.00030958,2]
[311027550,1704873086324,-500.0,0.00030958,2]
[311027551,1704873086334,-500.0,0.00030958,2]
[311027552,1704873086344,-500.0,0.00030958,2]
[311027553,1704873086353,-508.92122919,0.00030958,2]
[311027554,1704873086363,-1015.54,0.00030958,2]
[311027555,1704873086374,-1243.94,0.00030958,2]
[311027556,1704873086384,-500.0,0.00030958,2]
[311027557,1704873086394,-1980.15,0.00030958,2]
[311027558,1704873086403,-2469.6,0.00030958,2]
[311027559,1704873086413,-1197.88,0.00030958,2]
[311027560,1704873086423,-747.7,0.00030958,2]
[311027561,1704873086433,-503.16,0.00030958,2]
[311027562,1704873086443,-1264.06,0.00030958,2]
[311027563,1704873086453,-1211.0,0.00030958,2]
[311027564,1704873086463,-500.0,0.00030958,2]
[311027565,1704873086473,-593.51,0.00030958,2]
[311027566,1704873086483,-500.0,0.00030958,2]
[311027567,1704873086493,-1414.15,0.00030958,2]
[311027568,1704873086503,-813.85,0.00030958,2]
[311027569,1704873086513,-500.0,0.00030958,2]
[311027570,1704873086522,-1420.4,0.00030958,2]
[311027571,1704873086531,-1558.39,0.00030958,2]
[311027572,1704873086541,-500.0,0.00030958,2]
[311027573,1704873086551,-957.63,0.00030958,2]
[311027574,1704873086561,-500.0,0.00030958,2]
[311027575,1704873086572,-500.0,0.00030958,2]
[311027576,1704873086582,-824.71,0.00030958,2]
[311027577,1704873086593,-532.28,0.00030958,2]
[311027578,1704873086603,-1129.98,0.00030958,2]
[311027579,1704873086612,-736.45,0.00030958,2]
[311027580,1704873086623,-876.95,0.00030958,2]
[311027581,1704873086633,-981.71,0.00030958,2]
[311027582,1704873086643,-1067.63,0.00030958,2]
[311027583,1704873086652,-500.0,0.00030958,2]
[311027584,1704873086662,-522.20974337,0.00030958,2]
[311027585,1704873086672,-630.17,0.00030958,2]
[311027586,1704873086681,-500.0,0.00030958,2]
[311027587,1704873086690,-1523.04,0.00030958,2]
[311027588,1704873086699,-1018.05,0.00030958,2]
[311027589,1704873086709,-817.46,0.00030958,2]
[311027590,1704873086719,-1111.27,0.00030958,2]
[311027591,1704873086730,-1324.82,0.00030958,2]